bitfinex/quotes_SOLUSD_20250803
["timestamp","ask_amount","ask_price","bid_price","bid_amount"]
[1754180640738,0.33950251,157.81,157.78,8.85114373]
[1754180640917,0.33950251,157.83,157.79,9.53114373]
[1754180641115,0.33950251,157.85,157.8,0.68]
[1754180641441,0.33950251,157.86,157.84,8.85114373]
[1754180641619,9.19064624,157.85,157.75,0.1]
[1754180641814,8.85114373,157.83,157.75,0.1]
[1754180642129,8.85114373,157.8,157.76,0.68]
[1754180642440,0.33950251,157.79,157.76,0.68]
[1754180642741,9.19064624,157.79,157.77,0.68]
[1754180642913,0.33950251,157.79,157.78,0.68]
[1754180643118,8.85114373,157.8,157.78,0.68]
[1754180643321,0.33950251,157.79,157.78,0.68]
[1754180643728,9.19064624,157.79,157.75,0.1]
[1754180643935,0.33950251,157.79,157.76,0.68]
[1754180644113,0.33950251,157.79,157.75,0.1]
[1754180644323,8.85114373,157.77,157.75,0.1]
[1754180644518,0.33950251,157.76,157.75,0.1]
[1754180644923,0.33950251,157.76,157.75,0.78]
[1754180645344,0.33950251,157.79,157.75,14.1498269]
[1754180645520,0.33950251,157.79,157.76,0.68]
[1754180645833,13.3698269,157.78,157.76,0.68]
[1754180646044,0.33950251,157.77,157.76,0.68]
[1754180646244,0.33950251,157.79,157.76,0.68]
[1754180646549,13.70932941,157.79,157.76,0.68]
[1754180646742,13.3698269,157.78,157.75,0.1]
[1754180647057,0.33950251,157.77,157.75,0.1]
[1754180647212,0.33950251,157.77,157.75,0.78]
[1754180647812,13.3698269,157.78,157.75,0.78]
[1754180648013,0.33950251,157.77,157.75,0.1]
[1754180648251,13.3698269,157.78,157.76,0.68]
[1754180648450,0.33950251,157.77,157.76,0.68]
[1754180649251,0.56,157.77,157.75,0.1]
[1754180649432,13.70932941,157.76,157.75,0.1]
[1754180649945,0.33950251,157.76,157.75,0.1]
[1754180650131,0.33950251,157.78,157.75,0.1]
[1754180650328,13.3698269,157.77,157.75,0.1]
[1754180650525,0.33950251,157.76,157.75,0.1]
[1754180651037,13.3698269,157.76,157.75,0.1]
[1754180651422,0.33950251,157.78,157.75,0.1]
[1754180651628,13.3698269,157.76,157.75,0.1]
[1754180652827,0.33950251,157.78,157.75,0.78]
[1754180653031,0.33950251,157.78,157.76,0.68]
[1754180653330,0.33950251,157.78,157.77,0.68]
[1754180653728,13.929827,157.87,157.77,0.68]
[1754180653957,0.33950251,157.86,157.81,13.3698269]
[1754180654139,13.70932941,157.86,157.82,0.68]
[1754180654461,13.70932941,157.86,157.81,13.3698269]
[1754180654462,13.70932941,157.86,157.83,0.68]
[1754180654665,13.3698269,157.85,157.83,0.68]
[1754180654963,13.3698269,157.85,157.8,13.3698269]
[1754180654964,13.70932941,157.84,157.8,0.68]
[1754180655270,0.33950251,157.84,157.81,0.68]
[1754180655429,48.6,157.88,157.81,0.68]
[1754180655430,13.70932941,157.86,157.82,0.68]
[1754180655629,13.3698269,157.85,157.79,13.3698269]
[1754180655855,48.95950251,157.84,157.79,0.68]
[1754180656053,48.95950251,157.84,157.8,14.0498269]
[1754180656264,0.33950251,157.84,157.81,0.68]
[1754180656473,0.33950251,157.84,157.82,0.68]
[1754180656862,13.70932941,157.86,157.83,0.68]
[1754180657173,13.70932941,157.86,157.84,0.68]
[1754180657548,13.3698269,157.85,157.81,0.68]
[1754180657865,0.33950251,157.84,157.82,0.68]
[1754180658050,0.33950251,157.86,157.75,0.1]
[1754180658365,0.33950251,157.86,157.83,0.68]
[1754180658540,0.33950251,157.87,157.83,14.0498269]
[1754180658740,0.33950251,157.87,157.84,0.68]
[1754180658939,0.36950251,157.89,157.85,14.0498269]
[1754180659137,13.3698269,157.94,157.88,13.3698269]
[1754180659381,13.3698269,157.96,157.9,13.3698269]
[1754180659537,0.33950251,157.97,157.93,13.3698269]
[1754180659739,0.33950251,157.96,157.92,13.3698269]
[1754180659970,0.33950251,157.96,157.93,0.68]
[1754180660263,39.3698269,157.98,157.94,0.68]
[1754180660478,0.33950251,157.97,157.94,0.68]
[1754180660655,0.33950251,157.97,157.95,0.68]
[1754180660863,13.3698269,157.99,157.96,0.68]
[1754180661167,13.3698269,157.99,157.97,0.68]
[1754180661168,0.33950251,157.98,157.97,0.68]
[1754180661859,0.33950251,157.99,157.97,0.68]
[1754180662261,0.33950251,158.0,157.98,0.68]
[1754180662860,0.33950251,158.0,157.99,0.68]
[1754180663058,13.70932941,158.0,157.96,0.68]
[1754180663578,13.70932941,158.0,157.93,14.0498269]
[1754180663579,13.3698269,157.99,157.93,14.0498269]
[1754180663876,0.33950251,157.98,157.94,14.0498269]
[1754180664182,0.33950251,157.98,157.95,0.68]
[1754180664386,0.33950251,157.98,157.96,0.68]
[1754180664681,0.33950251,157.98,157.94,13.3698269]
[1754180664858,13.3698269,158.0,157.96,0.68]
[1754180664859,0.33950251,157.99,157.96,0.68]
[1754180665483,13.3698269,157.97,157.9,13.3698269]
[1754180665688,13.3698269,157.95,157.89,14.0498269]
[1754180665868,0.33950251,157.94,157.9,13.3698269]
[1754180666185,0.33950251,157.94,157.91,0.68]
[1754180666477,0.33950251,157.94,157.88,14.0498269]
[1754180666478,13.3698269,157.93,157.88,14.0498269]
[1754180666658,0.33950251,157.92,157.89,0.68]
[1754180667080,9.18178836,157.92,157.86,8.84228585]
[1754180667264,8.84228585,157.91,157.87,0.68]
[1754180667460,8.84228585,157.91,157.82,45.72]
[1754180667461,8.84228585,157.89,157.84,8.84228585]
[1754180667671,8.84228585,157.89,157.85,0.68]
[1754180667861,8.84228585,157.87,157.82,9.52228585]
[1754180668065,0.33950251,157.86,157.83,0.68]
[1754180668388,8.84228585,157.87,157.83,0.68]
[1754180668559,9.18178836,157.86,157.83,0.68]
[1754180668887,9.18178836,157.86,157.8,9.52228585]
[1754180669183,0.33950251,157.86,157.8,9.52228585]
[1754180669355,8.84228585,157.85,157.8,9.52228585]
[1754180669552,0.33950251,157.84,157.81,0.68]
[1754180669985,8.84228585,157.85,157.82,0.68]
[1754180670485,0.33950251,157.84,157.82,0.68]
[1754180670951,0.33950251,157.88,157.82,0.68]
[1754180671148,8.84228585,157.85,157.82,0.68]
[1754180671385,0.33950251,157.84,157.82,0.68]
[1754180671765,0.33950251,157.84,157.8,0.65]
[1754180672081,8.84228585,157.84,157.81,0.65]
[1754180672887,0.92950251,157.87,157.81,0.65]
[1754180672888,8.84228585,157.85,157.81,0.65]
[1754180673082,0.33950251,157.84,157.81,0.65]
[1754180673779,9.18178836,157.84,157.81,0.65]
[1754180674168,0.33950251,157.84,157.81,0.65]
[1754180674371,8.84228585,157.84,157.81,0.65]
[1754180674573,0.33950251,157.83,157.79,9.49228585]
[1754180674784,9.18178836,157.83,157.79,0.65]
[1754180674988,9.18178836,157.83,157.81,0.06]
[1754180675492,8.84228585,157.82,157.81,0.06]
[1754180676581,0.59,157.83,157.81,0.06]
[1754180676764,9.77178836,157.82,157.81,0.06]
[1754180676969,9.18178836,157.82,157.81,0.06]
[1754180677370,9.77178836,157.82,157.81,0.06]
[1754180678690,26.55647233,157.82,157.81,0.06]
[1754180679199,31.69266222,157.82,157.81,0.06]
[1754180679758,26.0,157.79,157.7,19.061537]
[1754180679958,8.84228585,157.74,157.71,0.65]
[1754180680459,0.33950251,157.73,157.71,0.65]
[1754180680688,8.84228585,157.74,157.71,0.65]
[1754180680895,26.0,157.77,157.7,0.65]
[1754180680896,9.18178836,157.73,157.7,0.65]
[1754180681198,0.33950251,157.73,157.7,0.65]
[1754180681385,0.33950251,157.73,157.67,48.34]
[1754180681386,8.84228585,157.73,157.67,0.65]
[1754180681563,8.84228585,157.73,157.7,0.65]
[1754180682085,0.92950251,157.76,157.7,0.65]
[1754180682387,8.84228585,157.73,157.68,8.84228585]
[1754180682592,8.84228585,157.73,157.7,0.65]
[1754180682756,0.33950251,157.74,157.71,0.65]
[1754180683081,8.84228585,157.74,157.72,0.65]
[1754180683289,0.33950251,157.73,157.72,0.65]
[1754180683680,0.33950251,157.73,157.69,0.65]
[1754180683880,8.84228585,157.73,157.68,8.84228585]
[1754180684387,0.33950251,157.75,157.65,0.1]
[1754180684388,0.33950251,157.75,157.69,0.65]
[1754180684591,0.33950251,157.75,157.7,8.84228585]
[1754180684592,9.18178836,157.75,157.7,8.84228585]
[1754180684898,8.84228585,157.74,157.71,0.65]
[1754180685075,0.33950251,157.73,157.71,0.65]
[1754180685266,8.84228585,157.74,157.71,0.65]
[1754180685588,0.33950251,157.73,157.71,0.65]
[1754180685784,9.18178836,157.73,157.71,0.65]
[1754180685993,0.33950251,157.73,157.71,0.65]
[1754180686682,8.84228585,157.75,157.72,0.65]
[1754180686885,0.59,157.78,157.73,9.49228585]
[1754180686886,0.33950251,157.78,157.73,9.49228585]
[1754180687079,8.84228585,157.77,157.65,10.1]
[1754180687271,8.84228585,157.74,157.69,8.84228585]
[1754180687475,0.33950251,157.73,157.7,0.65]
[1754180687873,9.18178836,157.73,157.7,0.65]
[1754180688183,0.33950251,157.73,157.7,0.65]
[1754180688696,0.33950251,157.77,157.71,9.49228585]
[1754180688894,8.84228585,157.76,157.72,0.65]
[1754180689068,0.33950251,157.75,157.73,0.65]
[1754180689700,9.18178836,157.75,157.7,9.49228585]
[1754180689859,9.18178836,157.75,157.71,0.65]
[1754180690281,9.18178836,157.75,157.72,0.65]
[1754180690483,9.18178836,157.75,157.7,0.65]
[1754180690484,8.84228585,157.74,157.7,0.65]
[1754180690692,0.33950251,157.73,157.7,0.65]
[1754180691068,0.33950251,157.73,157.71,0.65]
[1754180691483,0.33950251,157.73,157.69,8.84228585]
[1754180691689,8.84228585,157.7,157.66,0.65]
[1754180691893,8.84228585,157.7,157.67,0.65]
[1754180692196,26.0,157.74,157.67,0.65]
[1754180692197,9.18178836,157.69,157.67,0.65]
[1754180692415,0.33950251,157.73,157.67,0.65]
[1754180692587,8.84228585,157.7,157.67,0.65]
[1754180692904,8.84228585,157.7,157.66,8.84228585]
[1754180692905,8.84228585,157.7,157.68,0.65]
[1754180693095,8.84228585,157.7,157.65,0.1]
[1754180693096,0.33950251,157.69,157.67,0.65]
[1754180693299,0.92950251,157.69,157.65,0.1]
[1754180693500,0.92950251,157.69,157.65,8.94228585]
[1754180693686,0.33950251,157.69,157.66,0.65]
[1754180694187,9.18178836,157.69,157.66,0.65]
[1754180694498,8.84228585,157.68,157.66,0.65]
[1754180694871,8.84228585,157.69,157.66,0.65]
[1754180695069,0.33950251,157.68,157.67,0.65]
[1754180695300,0.33950251,157.74,157.67,0.65]
[1754180695482,9.18178836,157.74,157.67,0.65]
[1754180695679,8.84228585,157.7,157.67,0.65]
[1754180695999,8.84228585,157.7,157.65,8.94228585]
[1754180696000,0.33950251,157.69,157.65,9.59228585]
[1754180696208,8.84228585,157.7,157.66,0.65]
[1754180696407,8.84228585,157.72,157.67,8.84228585]
[1754180696710,0.33950251,157.71,157.66,8.84228585]
[1754180696871,0.33950251,157.73,157.68,0.65]
[1754180697072,8.84228585,157.72,157.68,0.65]
[1754180697298,0.33950251,157.72,157.69,0.65]
[1754180697605,8.84228585,157.73,157.7,0.65]
[1754180697784,0.33950251,157.72,157.7,0.65]
[1754180697988,8.84228585,157.74,157.65,0.1]
[1754180698320,0.33950251,157.73,157.71,0.65]
[1754180698489,8.84228585,157.74,157.69,9.49228585]
[1754180698685,8.84228585,157.74,157.65,0.1]
[1754180698686,9.18178836,157.78,157.73,8.84228585]
[1754180698886,9.18178836,157.78,157.74,0.65]
[1754180699121,0.33950251,157.78,157.74,0.65]
[1754180699417,9.18178836,157.78,157.74,0.65]
[1754180699623,8.84228585,157.77,157.72,9.49228585]
[1754180699793,8.84228585,157.79,157.75,0.65]
[1754180699991,9.18178836,157.78,157.73,9.49228585]
[1754180700186,0.33950251,157.78,157.75,8.84228585]
[1754180700389,0.33950251,157.82,157.77,8.84228585]
[1754180700739,0.33950251,157.84,157.81,8.84228585]
[1754180700893,0.33950251,157.85,157.82,9.54228585]
[1754180701086,0.33950251,157.85,157.81,8.84228585]
[1754180701388,0.33950251,157.85,157.77,11.978555]
[1754180701389,0.33950251,157.85,157.8,8.84228585]
[1754180701586,8.84228585,157.83,157.78,9.54228585]
[1754180701808,0.33950251,157.82,157.79,0.7]
[1754180702012,8.84228585,157.85,157.8,9.54228585]
[1754180702327,0.33950251,157.86,157.82,8.84228585]
[1754180702524,0.33950251,157.86,157.83,0.7]
[1754180702721,0.03,157.89,157.83,8.84228585]
[1754180702899,0.03,157.89,157.84,9.54228585]
[1754180702900,8.87228585,157.89,157.84,9.54228585]
[1754180703096,0.03,157.89,157.85,0.7]
[1754180703298,0.03,157.89,157.86,0.7]
[1754180703513,0.03,157.89,157.87,8.84228585]
[1754180703726,0.03,157.89,157.88,8.84228585]
[1754180704097,0.03,157.89,157.88,9.54228585]
[1754180704291,9.18178836,157.97,157.88,9.54228585]
[1754180704537,0.33950251,157.97,157.93,8.84228585]
[1754180704834,9.04228585,157.98,157.93,8.84228585]
[1754180704835,0.2,157.98,157.94,0.7]
[1754180704985,0.2,157.98,157.94,8.84228585]
[1754180705309,0.2,157.98,157.95,0.7]
[1754180705520,0.2,157.98,157.97,8.84228585]
[1754180706052,0.2,158.05,157.97,0.7]
[1754180706751,0.2,158.05,158.03,8.84228585]
[1754180706904,0.2,158.05,158.04,9.54228585]
[1754180707454,0.2,158.05,158.01,26.0]
[1754180707606,0.2,158.05,158.02,8.84228585]
[1754180707918,9.18178836,158.04,157.99,8.84228585]
[1754180708096,9.18178836,158.04,158.0,0.7]
[1754180708298,9.18178836,158.04,157.99,8.84228585]
[1754180708299,8.84228585,158.03,157.97,9.54228585]
[1754180708609,0.33950251,158.02,157.97,9.54228585]
[1754180708927,8.84228585,158.03,157.98,0.7]
[1754180709153,0.2,158.05,157.98,8.84228585]
[1754180709424,9.04228585,158.05,158.0,8.84228585]
[1754180709633,9.18178836,158.04,158.01,0.7]
[1754180709841,8.84228585,158.02,157.97,9.54228585]
[1754180710012,9.18178836,158.01,157.97,0.7]
[1754180710502,8.84228585,158.0,157.95,8.84228585]
[1754180710701,8.84228585,158.0,157.96,0.7]
[1754180711340,0.33950251,157.99,157.94,8.84228585]
[1754180711526,9.18178836,157.99,157.95,0.7]
[1754180711834,8.84228585,158.01,157.96,9.54228585]
[1754180712223,0.33950251,158.02,157.98,8.84228585]
[1754180712412,8.84228585,158.04,157.99,8.84228585]
[1754180712603,0.2,158.05,158.0,9.54228585]
[1754180712806,8.84228585,158.04,158.01,0.7]
[1754180713024,8.84228585,158.02,157.97,0.7]
[1754180713250,0.2,158.05,157.95,8.84228585]
[1754180713251,8.84228585,158.0,157.95,8.84228585]
[1754180713466,1.05950251,158.03,157.95,8.84228585]
[1754180713746,8.84228585,157.97,157.93,0.7]
[1754180713965,8.84228585,157.96,157.91,8.84228585]
[1754180714120,8.84228585,157.96,157.86,50.1]
[1754180714121,8.84228585,157.95,157.89,27.88325585]
[1754180714324,8.84228585,157.92,157.87,8.84228585]
[1754180714639,8.84228585,157.93,157.88,9.54228585]
[1754180714818,9.18178836,157.94,157.89,9.54228585]
[1754180715022,0.33950251,157.97,157.91,8.84228585]
[1754180715320,8.84228585,157.93,157.88,8.84228585]
[1754180715525,8.84228585,157.93,157.88,9.54228585]
[1754180716054,9.56228585,157.93,157.87,8.84228585]
[1754180716370,8.84228585,157.93,157.88,0.7]
[1754180716708,8.84228585,157.94,157.89,9.54228585]
[1754180716835,0.33950251,157.93,157.89,9.54228585]
[1754180717558,0.33950251,157.95,157.91,8.84228585]
[1754180717761,9.18178836,157.95,157.9,9.54228585]
[1754180718051,9.18178836,157.95,157.91,0.7]
[1754180718663,9.18178836,157.95,157.86,50.1]
[1754180718664,8.84228585,157.93,157.88,8.84228585]
[1754180718870,8.84228585,157.93,157.87,0.7]
[1754180718871,8.84228585,157.91,157.87,0.7]
[1754180719025,0.33950251,157.92,157.86,58.94228585]
[1754180719026,0.72,157.92,157.86,58.94228585]
[1754180719350,8.84228585,157.93,157.88,8.84228585]
[1754180719558,0.33950251,157.92,157.88,8.84228585]
[1754180719757,9.18178836,157.92,157.88,0.7]
[1754180720144,9.18178836,157.92,157.86,58.94228585]
[1754180720145,8.84228585,157.91,157.86,58.94228585]
[1754180720324,8.84228585,157.91,157.86,59.64228585]
[1754180720534,9.18178836,157.9,157.86,50.8]
[1754180720775,0.03,157.94,157.87,9.54228585]
[1754180720776,0.36950251,157.94,157.87,9.54228585]
[1754180720945,8.84228585,157.92,157.87,9.54228585]
[1754180721141,8.87228585,157.94,157.88,9.54228585]
[1754180721440,8.87228585,157.94,157.91,8.84228585]
[1754180721441,0.03,157.94,157.91,8.84228585]
[1754180721843,0.03,157.94,157.92,0.7]
[1754180722151,0.03,157.94,157.91,8.84228585]
[1754180722152,0.03,157.94,157.91,9.54228585]
[1754180722365,0.03,157.94,157.92,0.7]
[1754180722547,0.03,157.94,157.92,9.54228585]
[1754180722749,0.03,157.96,157.93,8.84228585]
[1754180722952,0.03,157.96,157.95,8.84228585]
[1754180723146,0.03,157.96,157.94,0.7]
[1754180723343,0.03,157.96,157.95,8.84228585]
[1754180723764,0.03,157.96,157.95,9.54228585]
[1754180724788,0.03,157.96,157.95,35.54228585]
[1754180725441,0.03,157.96,157.95,9.54228585]
[1754180727161,0.03,157.96,157.94,8.84228585]
[1754180727564,0.03,157.96,157.93,8.84228585]
[1754180727769,0.03,157.96,157.9,58.882286]
[1754180727983,0.03,157.96,157.9,50.04]
[1754180727984,9.21178836,157.96,157.9,50.04]
[1754180728186,0.36950251,157.96,157.9,50.04]
[1754180728362,0.75,157.96,157.92,8.84228585]
[1754180728561,8.87228585,157.96,157.91,8.84228585]
[1754180728756,1.05950251,157.95,157.89,8.84228585]
[1754180729079,9.90178836,157.95,157.9,8.84228585]
[1754180729451,9.18178836,157.95,157.9,9.54228585]
[1754180729851,9.18178836,157.95,157.9,8.84228585]
[1754180730167,0.03,157.96,157.93,8.84228585]
[1754180730579,8.87228585,157.96,157.9,2.538635]
[1754180730792,0.03,157.96,157.91,8.84228585]
[1754180730965,0.03,157.96,157.93,8.84228585]
[1754180731363,0.03,157.96,157.94,9.50228585]
[1754180731710,0.03,157.96,157.95,8.84228585]
[1754180731896,0.03,157.96,157.95,9.50228585]
[1754180733781,0.2,158.05,157.98,26.0]
[1754180733982,0.2,158.05,158.02,8.84228585]
[1754180734210,0.2,158.05,158.03,8.84228585]
[1754180734360,0.2,158.05,158.04,8.84228585]
[1754180734560,0.2,158.05,158.04,9.50228585]
[1754180737032,9.53228585,158.03,157.98,8.84228585]
[1754180737317,8.84228585,158.03,157.98,9.50228585]
[1754180737527,0.69,158.03,157.98,8.84228585]
[1754180737702,0.2,158.05,157.99,8.84228585]
[1754180737903,9.38178836,158.05,157.99,9.50228585]
[1754180738494,8.84228585,158.04,157.99,9.50228585]
[1754180739183,0.2,158.05,157.99,0.66]
[1754180739386,9.18178836,158.04,157.99,0.66]
[1754180739588,9.18178836,158.04,157.99,9.50228585]
[1754180739823,9.18178836,158.04,157.99,8.84228585]
[1754180740003,8.84228585,158.04,158.0,0.66]
[1754180740421,8.84228585,158.04,157.99,8.84228585]
[1754180740589,0.33950251,158.03,157.98,9.50228585]
[1754180740793,8.84228585,158.04,157.99,0.66]
[1754180741291,9.53228585,158.04,157.99,9.50228585]
[1754180741493,8.84228585,158.04,157.99,9.50228585]
[1754180742116,9.18178836,158.03,157.98,8.84228585]
[1754180742412,0.2,158.05,157.99,9.50228585]
[1754180742716,9.04228585,158.05,158.0,8.84228585]
[1754180742923,0.2,158.05,158.04,8.84228585]
[1754180743293,0.2,158.05,158.04,9.50228585]
[1754180745109,0.2,158.05,158.04,8.84228585]
[1754180745490,0.2,158.05,158.04,9.50228585]
[1754180746309,0.2,158.05,158.04,8.84228585]
[1754180746634,0.2,158.05,158.01,9.50228585]
[1754180746917,0.2,158.05,158.03,9.50228585]
[1754180747101,0.2,158.05,158.02,8.84228585]
[1754180747283,0.2,158.05,158.03,8.84228585]
[1754180747489,0.2,158.05,158.04,8.84228585]
[1754180747902,0.2,158.05,158.03,8.84228585]
[1754180748111,0.2,158.05,158.02,8.84228585]
[1754180748898,0.2,158.05,158.02,9.50228585]
[1754180749102,0.89,158.05,158.0,50.16]
[1754180749300,0.2,158.05,158.01,0.66]
[1754180750097,0.89,158.05,158.0,58.34228585]
[1754180750715,9.87178836,158.04,158.0,49.5]
[1754180750906,0.69,158.04,158.0,49.5]
[1754180751220,9.53228585,158.04,158.0,49.5]
[1754180751620,0.69,158.04,158.0,49.5]
[1754180751833,9.53228585,158.04,158.0,49.5]
[1754180752441,8.84228585,158.02,157.96,9.181789]
[1754180752645,8.84228585,158.01,157.96,49.34]
[1754180752805,0.69,158.03,157.96,58.84228585]
[1754180753006,0.33950251,158.02,157.96,58.84228585]
[1754180753429,9.18178836,158.02,157.97,8.84228585]
[1754180753602,9.18178836,158.02,157.97,9.50228585]
[1754180754009,9.18178836,158.02,157.97,0.66]
[1754180754262,8.84228585,158.01,157.97,0.66]
[1754180755436,0.69,158.02,157.97,0.66]
[1754180755636,0.33950251,158.01,157.97,0.66]
[1754180755948,1.02950251,158.04,157.97,0.66]
[1754180756631,1.02950251,158.04,157.96,58.18228585]
[1754180756632,8.84228585,157.99,157.94,9.50228585]
[1754180756844,8.84228585,157.97,157.94,49.18]
[1754180757349,8.84228585,157.98,157.94,49.84]
[1754180758358,8.84228585,157.98,157.95,0.66]
[1754180760328,8.84228585,157.97,157.94,49.18]
[1754180760549,8.84228585,157.95,157.92,0.06]
[1754180762652,8.84228585,157.94,157.92,0.06]
[1754180763153,8.84228585,157.95,157.92,0.06]
[1754180763346,8.84228585,157.96,157.92,0.06]
[1754180763649,0.72,157.97,157.92,0.06]
[1754180763843,8.84228585,157.98,157.93,9.53228585]
[1754180764025,9.56228585,157.97,157.92,8.90228585]
[1754180764433,9.56228585,157.97,157.92,9.59228585]
[1754180764939,8.84228585,157.97,157.92,8.90228585]
[1754180765149,8.84228585,157.97,157.93,0.69]
[1754180765442,9.56228585,157.96,157.92,0.06]
[1754180765951,1.05950251,157.95,157.92,0.06]
[1754180766155,8.84228585,157.95,157.92,0.06]
[1754180766852,9.56228585,157.94,157.92,0.06]
[1754180767157,8.84228585,157.94,157.92,0.06]
[1754180767354,8.84228585,157.95,157.92,0.06]
[1754180768041,8.84228585,157.99,157.94,8.84228585]
[1754180768244,16.78468397,158.01,157.94,0.69]
[1754180768245,9.18178836,157.98,157.94,0.69]
[1754180768826,9.18178836,157.98,157.93,8.84228585]
[1754180769155,9.18178836,157.98,157.92,0.75]
[1754180769156,8.84228585,157.94,157.92,0.06]
[1754180769357,8.84228585,157.93,157.92,0.06]
[1754180769863,8.84228585,157.94,157.92,0.06]
[1754180770436,9.56228585,157.94,157.92,0.06]
[1754180770662,8.84228585,157.93,157.92,0.06]
[1754180770825,26.33950251,157.97,157.92,9.59228585]
[1754180770826,0.33950251,157.97,157.92,9.59228585]
[1754180771145,8.84228585,157.97,157.92,9.59228585]
[1754180771332,0.33950251,157.96,157.92,9.59228585]
[1754180771539,9.18178836,157.96,157.92,0.75]
[1754180771943,9.56228585,157.95,157.92,0.06]
[1754180772661,8.84228585,157.93,157.92,0.06]
[1754180773250,9.56228585,157.93,157.92,0.06]
[1754180774062,8.84228585,157.93,157.92,0.06]
[1754180774564,9.56228585,157.93,157.92,0.06]
[1754180775557,26.0,157.91,157.9,0.06]
[1754180775753,9.18178836,157.91,157.9,0.06]
[1754180776059,9.90178836,157.91,157.9,0.06]
[1754180776363,0.33950251,157.92,157.9,0.06]
[1754180776532,8.84228585,157.93,157.9,0.75]
[1754180777138,8.84228585,157.93,157.9,0.06]
[1754180777559,1.05950251,157.95,157.9,0.06]
[1754180777560,8.84228585,157.92,157.9,0.06]
[1754180777948,8.84228585,157.93,157.9,0.06]
[1754180778146,0.33950251,157.95,157.91,0.69]
[1754180778466,0.72,157.98,157.91,0.69]
[1754180778467,9.18178836,157.96,157.92,0.69]
[1754180778761,0.33950251,157.98,157.93,9.53228585]
[1754180778967,8.84228585,157.97,157.9,0.06]
[1754180779140,8.84228585,157.97,157.93,0.69]
[1754180779464,9.18178836,157.99,157.94,9.53228585]
[1754180779644,8.84228585,157.98,157.94,0.69]
[1754180779962,0.33950251,157.97,157.94,0.69]
[1754180780155,8.84228585,157.98,157.93,8.84228585]
[1754180780364,8.84228585,157.98,157.93,9.53228585]
[1754180780531,8.84228585,157.94,157.9,0.06]
[1754180780735,8.84228585,157.93,157.9,0.06]
[1754180780942,8.84228585,157.91,157.9,0.06]
[1754180781849,9.56228585,157.91,157.9,0.06]
[1754180782765,8.84228585,157.91,157.9,0.06]
[1754180783142,0.33950251,157.94,157.9,0.75]
[1754180783444,8.84228585,157.92,157.9,0.75]
[1754180783638,9.18178836,157.91,157.9,0.06]
[1754180785245,9.90178836,157.91,157.9,0.06]
[1754180786441,9.18178836,157.91,157.9,0.06]
[1754180787041,9.90178836,157.91,157.9,0.06]
[1754180789552,26.68647233,157.91,157.9,0.06]
[1754180789790,26.68647233,157.91,157.88,0.06]
[1754180790001,16.78468397,157.88,157.8,0.69]
[1754180790164,8.84228585,157.82,157.8,0.69]
[1754180790771,8.84228585,157.81,157.8,0.69]
[1754180791087,8.84228585,157.81,157.78,0.06]
[1754180791088,8.84228585,157.81,157.78,0.75]
[1754180791489,8.84228585,157.81,157.79,0.68]
[1754180792397,9.18178836,157.8,157.78,0.06]
[1754180792562,8.84228585,157.79,157.78,0.06]
[1754180792758,8.84228585,157.8,157.78,0.06]
[1754180793189,8.84228585,157.81,157.78,0.74]
[1754180794762,8.84228585,157.79,157.78,0.06]
[1754180795676,9.53228585,157.79,157.78,0.06]
[1754180796100,26.31696982,157.79,157.78,0.06]
[1754180799199,17.12418648,157.82,157.78,0.06]
[1754180799387,8.84228585,157.79,157.78,0.06]
[1754180799598,8.84228585,157.79,157.78,0.74]
[1754180800492,8.84228585,157.79,157.78,0.06]
[1754180801109,9.18178836,157.83,157.78,9.58228585]
[1754180801279,0.33950251,157.82,157.79,0.68]
[1754180801479,0.33950251,157.82,157.8,0.68]
[1754180801674,8.84228585,157.83,157.8,0.68]
[1754180802112,8.84228585,157.84,157.81,0.68]
[1754180802312,0.33950251,157.86,157.82,0.68]
[1754180802313,8.84228585,157.85,157.82,0.68]